[Event "2025 Chess.com Botwinnik Rapid toernooi"]
[Site "Zoetermeer, Netherlands"]
[Date "????.??.??"]
[Round "5.3"]
[White "Grochal, Joey"]
[Black "Smeets, Kobe"]
[Result "0-1"]
[TimeControl "15+5"]
[WhiteTitle "FM"]
[BlackTitle "FM"]
[WhiteFideId "7926875"]
[BlackFideId "8659420"]
[WhiteElo "2272"]
[BlackElo "2364"]

1. d4 {[%clk 00:15:09]} {[%emt 00:00:01]} d5 {[%clk 00:15:08]} {[%emt
00:00:02]} 2. c4 {[%clk 00:15:12]} {[%emt 00:00:02]} c6 {[%clk 00:15:10]}
{[%emt 00:00:03]} 3. Nf3 {[%clk 00:15:15]} {[%emt 00:00:02]} Nf6 {[%clk
00:15:12]} {[%emt 00:00:02]} 4. Nc3 {[%clk 00:15:19]} {[%emt 00:00:02]} dxc4
{[%clk 00:15:16]} {[%emt 00:00:02]} 5. a4 {[%clk 00:15:22]} {[%emt 00:00:01]}
e6 {[%clk 00:15:20]} {[%emt 00:00:01]} 6. e3 {[%clk 00:15:12]} {[%emt
00:00:15]} c5 {[%clk 00:15:21]} {[%emt 00:00:04]} 7. Bxc4 {[%clk 00:15:13]}
{[%emt 00:00:04]} cxd4 {[%clk 00:15:24]} {[%emt 00:00:02]} 8. exd4 {[%clk
00:15:16]} {[%emt 00:00:02]} Nc6 {[%clk 00:15:28]} {[%emt 00:00:01]} 9. O-O
{[%clk 00:15:06]} {[%emt 00:00:16]} Be7 {[%clk 00:14:48]} {[%emt 00:00:44]} 10.
d5 {[%clk 00:14:41]} {[%emt 00:00:30]} exd5 {[%clk 00:14:39]} {[%emt 00:00:14]}
11. Nxd5 {[%clk 00:14:43]} {[%emt 00:00:02]} Nxd5 {[%clk 00:14:32]} {[%emt
00:00:12]} 12. Bxd5 {[%clk 00:14:17]} {[%emt 00:00:31]} O-O {[%clk 00:14:30]}
{[%emt 00:00:06]} 13. Qb3 {[%clk 00:13:36]} {[%emt 00:00:47]} Bf6 {[%clk
00:14:04]} {[%emt 00:00:31]} 14. Rd1 {[%clk 00:13:27]} {[%emt 00:00:14]} Qb6
{[%clk 00:14:07]} {[%emt 00:00:01]} 15. Qxb6 {[%clk 00:11:26]} {[%emt
00:02:07]} axb6 {[%clk 00:14:11]} 16. Be3 {[%clk 00:10:48]} {[%emt 00:00:43]}
Bxb2 {[%clk 00:12:33]} {[%emt 00:01:43]} 17. Ra2 {[%clk 00:10:48]} {[%emt
00:00:05]} Bf6 {[%clk 00:12:05]} {[%emt 00:00:33]} 18. Bxc6 {[%clk 00:10:51]}
{[%emt 00:00:03]} bxc6 {[%clk 00:12:09]} {[%emt 00:00:01]} 19. Bxb6 {[%clk
00:10:53]} {[%emt 00:00:02]} Be6 {[%clk 00:12:03]} {[%emt 00:00:10]} 20. Ra3
{[%clk 00:10:21]} {[%emt 00:00:38]} Bb2 {[%clk 00:12:02]} {[%emt 00:00:06]} 21.
Re3 {[%clk 00:10:19]} {[%emt 00:00:07]} Rxa4 {[%clk 00:12:02]} {[%emt
00:00:05]} 22. h3 {[%clk 00:10:11]} {[%emt 00:00:13]} h6 {[%emt 00:00:31]} 23.
Nd4 {[%clk 00:10:06]} Bd5 {[%clk 00:08:32]} {[%emt 00:03:19]} 24. Nf5 {[%clk
00:10:04]} {[%emt 00:00:07]} Rb8 {[%clk 00:07:30]} {[%emt 00:01:07]} 25. Bc5
{[%clk 00:09:57]} {[%emt 00:00:11]} Kh7 {[%clk 00:06:32]} {[%emt 00:01:03]} 26.
Ne7 {[%clk 00:09:42]} {[%emt 00:00:21]} Rb5 {[%clk 00:03:15]} {[%emt 00:03:23]}
27. Bd6 {[%clk 00:09:32]} {[%emt 00:00:14]} Bb3 {[%clk 00:02:40]} {[%emt
00:00:40]} 28. Rde1 {[%clk 00:08:08]} {[%emt 00:01:29]} c5 {[%clk 00:02:24]}
{[%emt 00:00:21]} 29. Be5 {[%clk 00:08:12]} {[%emt 00:00:01]} Be6 {[%clk
00:02:12]} {[%emt 00:00:17]} 30. f4 {[%clk 00:07:15]} {[%emt 00:01:01]} Bxe5
{[%clk 00:01:46]} {[%emt 00:00:31]} 31. Rxe5 {[%clk 00:07:14]} {[%emt
00:00:06]} Rxf4 {[%clk 00:01:29]} {[%emt 00:00:21]} 32. Rc1 {[%clk 00:07:15]}
{[%emt 00:00:04]} Rb2 {[%clk 00:01:34]} 33. Nd5 {[%clk 00:07:10]} {[%emt
00:00:11]} Bxd5 {[%clk 00:01:33]} {[%emt 00:00:06]} 34. Rxd5 {[%clk 00:07:13]}
{[%emt 00:00:01]} Rff2 {[%clk 00:01:36]} {[%emt 00:00:01]} 35. Rdxc5 {[%clk
00:07:07]} {[%emt 00:00:12]} Rxg2+ {[%clk 00:01:40]} {[%emt 00:00:01]} 36. Kf1
{[%clk 00:07:11]} {[%emt 00:00:01]} Rh2 {[%clk 00:01:32]} {[%emt 00:00:13]} 37.
Ke1 {[%clk 00:15:05]} {[%emt 00:00:13]} 0-1

[Event "2025 Chess.com Botwinnik Rapid toernooi"]
[Site "Zoetermeer, Netherlands"]
[Date "????.??.??"]
[Round "5.4"]
[White "Grooten, Herman"]
[Black "Vrolijk, Liam"]
[Result "0-1"]
[TimeControl "15+5"]
[WhiteTitle "IM"]
[BlackTitle "GM"]
[WhiteFideId "7375115"]
[BlackFideId "8428871"]
[WhiteElo "2157"]
[BlackElo "2510"]

1. d4 {[%clk 00:15:09]} Nf6 {[%clk 00:15:08]} {[%emt 00:00:02]} 2. c4 {[%clk
00:15:13]} e6 {[%clk 00:15:10]} {[%emt 00:00:03]} 3. Nf3 {[%clk 00:15:17]} d5
{[%clk 00:15:11]} {[%emt 00:00:04]} 4. Nc3 {[%clk 00:15:21]} {[%emt 00:00:01]}
Bb4 {[%clk 00:14:58]} {[%emt 00:00:18]} 5. cxd5 {[%clk 00:15:24]} {[%emt
00:00:02]} exd5 {[%clk 00:15:01]} {[%emt 00:00:02]} 6. Bg5 {[%clk 00:15:28]}
{[%emt 00:00:01]} h6 {[%clk 00:15:04]} {[%emt 00:00:02]} 7. Bh4 {[%clk
00:15:31]} {[%emt 00:00:02]} O-O {[%clk 00:15:06]} {[%emt 00:00:04]} 8. e3
{[%clk 00:15:29]} {[%emt 00:00:07]} Bf5 {[%clk 00:15:08]} {[%emt 00:00:03]} 9.
Qb3 {[%clk 00:15:23]} {[%emt 00:00:11]} Bxc3+ {[%clk 00:15:04]} {[%emt
00:00:09]} 10. bxc3 {[%clk 00:15:25]} {[%emt 00:00:02]} Nbd7 {[%clk 00:14:55]}
{[%emt 00:00:14]} 11. Be2 {[%clk 00:14:48]} {[%emt 00:00:42]} c5 {[%clk
00:14:56]} {[%emt 00:00:04]} 12. O-O {[%clk 00:14:47]} {[%emt 00:00:06]} c4
{[%clk 00:14:59]} {[%emt 00:00:02]} 13. Qb2 {[%clk 00:14:01]} {[%emt 00:00:51]}
Qb6 {[%clk 00:14:33]} {[%emt 00:00:31]} 14. Qc1 {[%clk 00:13:01]} {[%emt
00:01:05]} Rfe8 {[%clk 00:13:50]} {[%emt 00:00:47]} 15. Nd2 {[%clk 00:13:01]}
{[%emt 00:00:06]} Qe6 {[%clk 00:12:55]} {[%emt 00:01:00]} 16. Re1 {[%clk
00:12:49]} {[%emt 00:00:16]} b5 {[%clk 00:12:45]} {[%emt 00:00:15]} 17. a4
{[%clk 00:12:20]} {[%emt 00:00:34]} a6 {[%clk 00:12:44]} {[%emt 00:00:06]} 18.
Bf1 {[%clk 00:12:00]} {[%emt 00:00:25]} Nb6 {[%clk 00:12:28]} {[%emt 00:00:21]}
19. a5 {[%clk 00:11:55]} {[%emt 00:00:10]} Na4 {[%clk 00:12:15]} {[%emt
00:00:18]} 20. f3 {[%clk 00:11:56]} {[%emt 00:00:04]} Bd3 {[%clk 00:12:08]}
{[%emt 00:00:12]} 21. e4 {[%clk 00:09:43]} {[%emt 00:02:18]} g5 {[%clk
00:11:05]} {[%emt 00:01:09]} 22. Bg3 {[%clk 00:09:30]} {[%emt 00:00:16]} Bxf1
{[%clk 00:10:22]} {[%emt 00:00:50]} 23. Kxf1 {[%clk 00:09:01]} {[%emt
00:00:34]} dxe4 {[%clk 00:09:55]} {[%emt 00:00:31]} 24. Nxe4 {[%clk 00:07:38]}
{[%emt 00:01:28]} Nxe4 {[%clk 00:07:16]} {[%emt 00:02:45]} 25. fxe4 {[%clk
00:07:41]} {[%emt 00:00:03]} f5 {[%clk 00:07:19]} {[%emt 00:00:02]} 26. exf5
{[%clk 00:06:12]} {[%emt 00:01:34]} Qxf5+ {[%clk 00:07:22]} {[%emt 00:00:01]}
27. Kg1 {[%clk 00:06:15]} {[%emt 00:00:02]} Qd3 {[%clk 00:07:10]} {[%emt
00:00:17]} 28. Ra3 {[%clk 00:05:03]} {[%emt 00:01:18]} Re4 {[%clk 00:06:19]}
{[%emt 00:00:55]} 29. Be5 {[%clk 00:04:25]} {[%emt 00:00:43]} Rf8 {[%clk
00:05:58]} {[%emt 00:00:25]} 30. h4 {[%clk 00:04:04]} {[%emt 00:00:27]} Rxh4
{[%clk 00:05:35]} {[%emt 00:00:25]} 31. Rd1 {[%clk 00:03:39]} {[%emt 00:00:33]}
Qe2 {[%clk 00:05:26]} {[%emt 00:00:14]} 32. Bg3 {[%clk 00:03:32]} {[%emt
00:00:11]} Rg4 {[%clk 00:04:42]} {[%emt 00:00:50]} 33. Re1 {[%clk 00:03:11]}
{[%emt 00:00:26]} Qd3 {[%clk 00:04:40]} {[%emt 00:00:07]} 34. Re3 {[%clk
00:02:49]} {[%emt 00:00:27]} Rf1+ {[%clk 00:04:37]} {[%emt 00:00:08]} 35. Qxf1
{[%clk 00:02:52]} {[%emt 00:00:02]} Qxe3+ {[%clk 00:04:39]} {[%emt 00:00:02]}
36. Bf2 {[%clk 00:02:47]} {[%emt 00:00:11]} Qd3 {[%clk 00:04:21]} {[%emt
00:00:23]} 37. Qxd3 {[%clk 00:02:49]} {[%emt 00:00:03]} cxd3 {[%clk 00:04:25]}
{[%emt 00:00:01]} 38. Be3 {[%clk 00:02:52]} {[%emt 00:00:02]} Re4 {[%clk
00:04:09]} {[%emt 00:00:21]} 39. Kf2 {[%clk 00:02:55]} {[%emt 00:00:02]} Nb2
{[%clk 00:04:12]} {[%emt 00:00:01]} 40. Bc1 {[%clk 00:01:43]} {[%emt 00:01:18]}
Re2+ {[%clk 00:04:06]} {[%emt 00:00:11]} 41. Kf3 {[%clk 00:01:46]} {[%emt
00:00:03]} d2 {[%clk 00:03:52]} {[%emt 00:00:19]} 42. Bxd2 {[%clk 00:01:33]}
{[%emt 00:00:18]} Rxd2 {[%clk 00:03:56]} {[%emt 00:00:01]} 0-1

[Event "2025 Chess.com Botwinnik Rapid toernooi"]
[Site "Zoetermeer, Netherlands"]
[Date "????.??.??"]
[Round "5.5"]
[White "Van der Werf, Joël"]
[Black "Bekker, Stefan"]
[Result "1/2-1/2"]
[TimeControl "15+5"]
[BlackTitle "FM"]
[WhiteFideId "8301040"]
[BlackFideId "8083141"]
[WhiteElo "2113"]
[BlackElo "2333"]

1. e4 {[%clk 00:15:09]} {[%emt 00:00:01]} c5 {[%clk 00:15:08]} {[%emt
00:00:03]} 2. Nf3 {[%clk 00:15:12]} {[%emt 00:00:02]} d6 {[%clk 00:15:11]}
{[%emt 00:00:02]} 3. d4 {[%clk 00:15:15]} {[%emt 00:00:01]} cxd4 {[%clk
00:15:15]} {[%emt 00:00:02]} 4. Nxd4 {[%clk 00:15:18]} {[%emt 00:00:02]} Nf6
{[%clk 00:15:18]} {[%emt 00:00:02]} 5. Nc3 {[%clk 00:15:21]} {[%emt 00:00:02]}
a6 {[%clk 00:15:21]} {[%emt 00:00:01]} 6. h3 {[%clk 00:15:07]} {[%emt
00:00:19]} e5 {[%clk 00:15:23]} {[%emt 00:00:02]} 7. Nde2 {[%clk 00:15:11]}
{[%emt 00:00:02]} h5 {[%clk 00:15:26]} {[%emt 00:00:02]} 8. g3 {[%clk
00:15:14]} {[%emt 00:00:01]} Nbd7 {[%clk 00:15:20]} {[%emt 00:00:11]} 9. a4
{[%clk 00:15:15]} {[%emt 00:00:05]} Be7 {[%clk 00:15:07]} {[%emt 00:00:17]} 10.
Bg2 {[%clk 00:15:18]} {[%emt 00:00:02]} b6 {[%clk 00:14:54]} {[%emt 00:00:18]}
11. Nd5 {[%clk 00:14:45]} {[%emt 00:00:38]} Nxd5 {[%clk 00:14:39]} {[%emt
00:00:20]} 12. Qxd5 {[%clk 00:14:47]} {[%emt 00:00:02]} Rb8 {[%clk 00:14:08]}
{[%emt 00:00:36]} 13. Nc3 {[%clk 00:14:49]} {[%emt 00:00:02]} Nf6 {[%clk
00:13:36]} {[%emt 00:00:38]} 14. Qd3 {[%clk 00:14:51]} {[%emt 00:00:01]} Bb7
{[%clk 00:13:18]} {[%emt 00:00:25]} 15. Bg5 {[%clk 00:13:26]} {[%emt 00:01:30]}
Nd7 {[%clk 00:12:31]} {[%emt 00:00:52]} 16. Bxe7 {[%clk 00:12:16]} {[%emt
00:01:15]} Kxe7 {[%clk 00:12:33]} {[%emt 00:00:02]} 17. Nd5+ {[%clk 00:11:47]}
{[%emt 00:00:34]} Bxd5 {[%clk 00:12:33]} {[%emt 00:00:06]} 18. Qxd5 {[%clk
00:11:42]} {[%emt 00:00:10]} h4 {[%clk 00:11:54]} {[%emt 00:00:44]} 19. g4
{[%clk 00:10:34]} {[%emt 00:01:14]} Qc7 {[%clk 00:10:34]} {[%emt 00:01:24]} 20.
c3 {[%clk 00:10:05]} {[%emt 00:00:34]} g5 {[%clk 00:09:47]} {[%emt 00:00:52]}
21. Bf1 {[%clk 00:09:47]} {[%emt 00:00:24]} Nf6 {[%clk 00:08:04]} {[%emt
00:01:48]} 22. Qd3 {[%clk 00:09:12]} {[%emt 00:00:40]} Qc6 {[%clk 00:07:33]}
{[%emt 00:00:36]} 23. Bg2 {[%clk 00:09:15]} {[%emt 00:00:02]} b5 {[%clk
00:07:14]} {[%emt 00:00:24]} 24. axb5 {[%clk 00:09:11]} {[%emt 00:00:09]} axb5
{[%clk 00:07:18]} {[%emt 00:00:02]} 25. O-O {[%clk 00:09:08]} {[%emt 00:00:07]}
Nd7 {[%clk 00:06:25]} {[%emt 00:00:58]} 26. Ra7 {[%clk 00:08:58]} {[%emt
00:00:15]} Rb7 {[%clk 00:06:29]} 27. Rfa1 {[%clk 00:08:15]} {[%emt 00:00:47]}
Rxa7 {[%clk 00:06:02]} {[%emt 00:00:33]} 28. Rxa7 {[%clk 00:08:19]} {[%emt
00:00:01]} Qb6 {[%clk 00:05:58]} {[%emt 00:00:09]} 29. Ra1 {[%clk 00:08:05]}
{[%emt 00:00:19]} Rb8 {[%clk 00:05:23]} {[%emt 00:00:40]} 30. Qf3 {[%clk
00:08:08]} {[%emt 00:00:02]} Nc5 {[%clk 00:04:59]} {[%emt 00:00:28]} 31. Qf5
{[%clk 00:08:10]} {[%emt 00:00:04]} Ne6 {[%clk 00:05:02]} {[%emt 00:00:02]} 32.
Bf1 {[%clk 00:07:54]} {[%emt 00:00:21]} Rh8 {[%clk 00:03:51]} {[%emt 00:01:17]}
33. Bxb5 {[%clk 00:04:43]} {[%emt 00:03:17]} Qc7 {[%clk 00:02:26]} {[%emt
00:01:30]} 34. Qf3 {[%clk 00:04:07]} {[%emt 00:00:40]} Rb8 {[%clk 00:02:27]}
{[%emt 00:00:04]} 35. c4 {[%clk 00:03:55]} {[%emt 00:00:17]} Nf4 {[%clk
00:01:55]} {[%emt 00:00:37]} 36. Qe3 {[%clk 00:03:39]} {[%emt 00:00:21]} Rb7
{[%clk 00:01:28]} {[%emt 00:00:32]} 37. Kh2 {[%clk 00:03:08]} {[%emt 00:00:35]}
Kf6 {[%clk 00:01:17]} {[%emt 00:00:16]} 38. Ra6 {[%clk 00:03:06]} {[%emt
00:00:07]} Ne6 {[%clk 00:00:41]} {[%emt 00:00:41]} 39. Qf3+ {[%clk 00:03:00]}
{[%emt 00:00:11]} Nf4 {[%clk 00:00:39]} {[%emt 00:00:07]} 40. Qa3 {[%clk
00:02:26]} {[%emt 00:00:39]} Rb6 {[%clk 00:00:25]} {[%emt 00:00:20]} 41. Qa5
{[%clk 00:01:56]} {[%emt 00:00:34]} Rb7 {[%clk 00:00:14]} {[%emt 00:00:15]} 42.
Qxc7 {[%clk 00:01:55]} {[%emt 00:00:06]} Rxc7 {[%clk 00:00:19]} 43. Rxd6+
{[%clk 00:01:58]} {[%emt 00:00:02]} Ke7 {[%clk 00:00:23]} 44. Rd2 {[%clk
00:01:50]} {[%emt 00:00:13]} Ne6 {[%clk 00:00:26]} {[%emt 00:00:03]} 45. Rd5
{[%clk 00:01:40]} {[%emt 00:00:14]} f6 {[%clk 00:00:27]} {[%emt 00:00:04]} 46.
b4 {[%clk 00:01:22]} {[%emt 00:00:24]} Ra7 {[%clk 00:00:27]} {[%emt 00:00:04]}
47. Rd2 {[%clk 00:01:13]} {[%emt 00:00:14]} Nd4 {[%clk 00:00:28]} {[%emt
00:00:05]} 48. Kg2 {[%clk 00:01:14]} {[%emt 00:00:04]} Rb7 {[%clk 00:00:26]}
{[%emt 00:00:06]} 49. Ra2 {[%clk 00:01:16]} {[%emt 00:00:02]} Nxb5 {[%emt
00:00:32]} 1/2-1/2

[Event "2025 Chess.com Botwinnik Rapid toernooi"]
[Site "Zoetermeer, Netherlands"]
[Date "????.??.??"]
[Round "6.1"]
[White "Van Vliet, Jeffrey"]
[Black "Lai, Hing Ting"]
[Result "0-1"]
[TimeControl "15+5"]
[WhiteTitle "FM"]
[BlackTitle "IM"]
[WhiteFideId "7890839"]
[BlackFideId "8324987"]
[WhiteElo "2387"]
[BlackElo "2484"]

1. e4 {[%clk 00:15:07]} {[%emt 00:00:03]} c6 {[%clk 00:15:09]} {[%emt
00:00:02]} 2. d4 {[%clk 00:15:07]} {[%emt 00:00:04]} d5 {[%clk 00:15:13]}
{[%emt 00:00:01]} 3. exd5 {[%clk 00:15:10]} {[%emt 00:00:02]} cxd5 {[%clk
00:15:17]} {[%emt 00:00:01]} 4. Bd3 {[%clk 00:15:14]} {[%emt 00:00:01]} Nc6
{[%clk 00:15:20]} {[%emt 00:00:01]} 5. c3 {[%clk 00:15:16]} {[%emt 00:00:02]}
Qc7 {[%clk 00:15:23]} {[%emt 00:00:02]} 6. Ne2 {[%clk 00:15:12]} {[%emt
00:00:09]} e6 {[%clk 00:15:09]} {[%emt 00:00:19]} 7. Bf4 {[%clk 00:15:10]}
{[%emt 00:00:07]} Bd6 {[%clk 00:15:13]} {[%emt 00:00:02]} 8. Bxd6 {[%clk
00:15:13]} {[%emt 00:00:02]} Qxd6 {[%clk 00:15:16]} {[%emt 00:00:01]} 9. Nd2
{[%clk 00:15:03]} {[%emt 00:00:15]} Nge7 {[%clk 00:15:07]} {[%emt 00:00:14]} 10.
O-O {[%clk 00:14:50]} {[%emt 00:00:17]} O-O {[%emt 00:00:57]} 11. f4 {[%clk
00:14:01]} Bd7 {[%clk 00:15:05]} {[%emt 00:00:10]} 12. Nf3 {[%clk 00:13:33]}
{[%emt 00:00:32]} f6 {[%clk 00:15:07]} {[%emt 00:00:03]} 13. Qe1 {[%clk
00:12:41]} {[%emt 00:00:56]} Be8 {[%clk 00:13:56]} {[%emt 00:01:18]} 14. Qg3
{[%clk 00:12:05]} {[%emt 00:00:40]} Rd8 {[%clk 00:13:31]} {[%emt 00:00:30]} 15.
Rae1 {[%clk 00:11:46]} {[%emt 00:00:24]} Bg6 {[%clk 00:13:18]} {[%emt
00:00:19]} 16. Bxg6 {[%clk 00:09:25]} {[%emt 00:02:26]} Nxg6 {[%clk 00:12:54]}
{[%emt 00:00:29]} 17. Nh4 {[%clk 00:05:57]} {[%emt 00:03:33]} Nxh4 {[%clk
00:10:56]} {[%emt 00:02:04]} 18. Qxh4 {[%clk 00:06:00]} {[%emt 00:00:02]} Ne7
{[%clk 00:10:58]} {[%emt 00:00:03]} 19. Ng3 {[%clk 00:05:36]} {[%emt 00:00:28]}
Rde8 {[%clk 00:09:40]} {[%emt 00:01:23]} 20. Qg4 {[%clk 00:04:59]} {[%emt
00:00:42]} Nc6 {[%clk 00:09:28]} {[%emt 00:00:17]} 21. Rf2 {[%clk 00:04:52]}
{[%emt 00:00:12]} b5 {[%clk 00:07:22]} {[%emt 00:02:11]} 22. a3 {[%clk
00:04:40]} {[%emt 00:00:17]} a5 {[%clk 00:07:21]} {[%emt 00:00:06]} 23. Nh5
{[%clk 00:03:38]} {[%emt 00:01:06]} Rf7 {[%clk 00:06:46]} {[%emt 00:00:41]} 24.
Rfe2 {[%clk 00:03:15]} {[%emt 00:00:28]} Nd8 {[%clk 00:05:32]} {[%emt
00:01:19]} 25. f5 {[%clk 00:02:36]} {[%emt 00:00:44]} e5 {[%clk 00:05:13]}
{[%emt 00:00:25]} 26. dxe5 {[%clk 00:02:27]} {[%emt 00:00:13]} fxe5 {[%clk
00:05:10]} {[%emt 00:00:09]} 27. Kh1 {[%clk 00:01:36]} {[%emt 00:00:55]} Nc6
{[%clk 00:04:46]} {[%emt 00:00:29]} 28. h3 {[%clk 00:01:27]} {[%emt 00:00:14]}
e4 {[%clk 00:04:43]} {[%emt 00:00:08]} 29. Rd1 {[%clk 00:01:20]} {[%emt
00:00:12]} Qe5 {[%clk 00:03:35]} {[%emt 00:01:13]} 30. f6 {[%clk 00:01:08]}
{[%emt 00:00:16]} g6 {[%clk 00:03:14]} {[%emt 00:00:27]} 31. Nf4 {[%clk
00:01:08]} {[%emt 00:00:05]} Rxf6 {[%clk 00:02:29]} {[%emt 00:00:50]} 32. Nxd5
{[%clk 00:00:16]} {[%emt 00:00:57]} Rf7 {[%clk 00:01:52]} {[%emt 00:00:42]} 33.
Ne3 {[%clk 00:00:17]} {[%emt 00:00:04]} Ref8 {[%clk 00:01:52]} {[%emt
00:00:04]} 34. Red2 {[%clk 00:00:13]} {[%emt 00:00:09]} Ne7 {[%clk 00:01:47]}
{[%emt 00:00:10]} 35. Qe2 {[%clk 00:00:11]} {[%emt 00:00:07]} h5 {[%clk
00:01:37]} {[%emt 00:00:16]} 36. Nd5 {[%clk 00:00:08]} {[%emt 00:00:08]} Nf5
{[%clk 00:01:31]} {[%emt 00:00:11]} 37. Kg1 {[%clk 00:00:09]} {[%emt 00:00:04]}
Ng3 {[%clk 00:01:31]} {[%emt 00:00:05]} 38. Qe3 {[%clk 00:00:07]} {[%emt
00:00:07]} Rf1+ {[%clk 00:01:34]} {[%emt 00:00:02]} 39. Rxf1 {[%clk 00:00:11]}
Rxf1+ {[%clk 00:01:38]} {[%emt 00:00:01]} 40. Kh2 {[%clk 00:00:14]} {[%emt
00:00:02]} Rh1# {[%clk 00:01:42]} 0-1

[Event "2025 Chess.com Botwinnik Rapid toernooi"]
[Site "Zoetermeer, Netherlands"]
[Date "????.??.??"]
[Round "6.3"]
[White "Smit, Manuel"]
[Black "Smeets, Kobe"]
[Result "0-1"]
[TimeControl "15+5"]
[BlackTitle "FM"]
[WhiteFideId "7689517"]
[BlackFideId "8659420"]
[WhiteElo "2016"]
[BlackElo "2364"]

1. Nf3 {[%clk 00:15:06]} {[%emt 00:00:02]} d5 {[%clk 00:15:09]} {[%emt
00:00:02]} 2. e3 {[%clk 00:15:08]} {[%emt 00:00:02]} Nf6 {[%clk 00:15:08]}
{[%emt 00:00:07]} 3. b3 {[%clk 00:15:10]} {[%emt 00:00:03]} Bf5 {[%clk
00:15:09]} {[%emt 00:00:05]} 4. Bb2 {[%clk 00:15:11]} {[%emt 00:00:03]} e6
{[%clk 00:15:13]} {[%emt 00:00:01]} 5. Be2 {[%clk 00:14:41]} {[%emt 00:00:35]}
h6 {[%clk 00:15:16]} {[%emt 00:00:03]} 6. O-O {[%clk 00:14:40]} {[%emt
00:00:06]} Be7 {[%clk 00:15:18]} {[%emt 00:00:02]} 7. d4 {[%clk 00:14:35]}
{[%emt 00:00:10]} O-O {[%clk 00:15:18]} {[%emt 00:00:05]} 8. c4 {[%clk
00:14:39]} {[%emt 00:00:01]} c6 {[%clk 00:15:19]} {[%emt 00:00:04]} 9. Nc3
{[%clk 00:14:42]} {[%emt 00:00:02]} Nbd7 {[%clk 00:15:21]} {[%emt 00:00:03]} 10.
Rc1 {[%clk 00:14:43]} {[%emt 00:00:04]} a5 {[%clk 00:15:11]} {[%emt 00:00:15]}
11. Bd3 {[%clk 00:13:55]} {[%emt 00:00:52]} Bxd3 {[%clk 00:15:15]} {[%emt
00:00:02]} 12. Qxd3 {[%clk 00:13:58]} {[%emt 00:00:02]} Qb6 {[%clk 00:15:19]}
{[%emt 00:00:01]} 13. c5 {[%clk 00:13:22]} {[%emt 00:00:40]} Qc7 {[%clk
00:15:08]} {[%emt 00:00:16]} 14. Nd2 {[%clk 00:12:26]} {[%emt 00:01:01]} Rfe8
{[%clk 00:14:59]} {[%emt 00:00:14]} 15. f3 {[%clk 00:12:27]} {[%emt 00:00:03]}
e5 {[%clk 00:14:15]} {[%emt 00:00:48]} 16. Na4 {[%clk 00:11:54]} {[%emt
00:00:39]} Bf8 {[%clk 00:13:52]} {[%emt 00:00:28]} 17. dxe5 {[%clk 00:11:14]}
{[%emt 00:00:45]} Nxe5 {[%clk 00:13:52]} {[%emt 00:00:04]} 18. Qd4 {[%clk
00:11:08]} {[%emt 00:00:12]} Ned7 {[%clk 00:12:30]} {[%emt 00:01:27]} 19. Rfd1
{[%clk 00:10:42]} {[%emt 00:00:32]} Re6 {[%clk 00:12:28]} {[%emt 00:00:06]} 20.
e4 {[%clk 00:10:22]} {[%emt 00:00:26]} dxe4 {[%clk 00:12:08]} {[%emt 00:00:26]}
21. Nxe4 {[%clk 00:10:22]} {[%emt 00:00:04]} Rae8 {[%clk 00:11:46]} {[%emt
00:00:27]} 22. Nd6 {[%clk 00:09:01]} {[%emt 00:01:25]} Rd8 {[%clk 00:10:34]}
{[%emt 00:01:18]} 23. Nf5 {[%clk 00:07:59]} {[%emt 00:01:07]} Re5 {[%clk
00:06:46]} {[%emt 00:03:52]} 24. g4 {[%clk 00:05:27]} {[%emt 00:02:37]} Re2
{[%clk 00:05:23]} {[%emt 00:01:28]} 25. Ng3 {[%clk 00:05:30]} {[%emt 00:00:01]}
Rde8 {[%clk 00:05:28]} {[%emt 00:00:02]} 26. Rd2 {[%clk 00:05:04]} {[%emt
00:00:30]} Ne5 {[%clk 00:04:58]} {[%emt 00:00:35]} 27. Rf1 {[%clk 00:04:45]}
{[%emt 00:00:24]} Re1 {[%clk 00:04:16]} {[%emt 00:00:47]} 28. Kg2 {[%clk
00:04:36]} {[%emt 00:00:14]} Ng6 {[%clk 00:03:47]} {[%emt 00:00:34]} 29. Rxe1
{[%clk 00:04:18]} {[%emt 00:00:23]} Rxe1 {[%clk 00:03:51]} {[%emt 00:00:01]} 30.
Kf2 {[%clk 00:04:19]} {[%emt 00:00:04]} Qe7 {[%clk 00:02:37]} {[%emt 00:01:19]}
31. Nf5 {[%clk 00:04:10]} {[%emt 00:00:14]} Qe6 {[%clk 00:01:39]} {[%emt
00:01:03]} 32. Kg3 {[%clk 00:03:03]} {[%emt 00:01:12]} h5 {[%clk 00:00:53]}
{[%emt 00:00:52]} 33. h3 {[%clk 00:02:25]} {[%emt 00:00:43]} Re2 {[%clk
00:00:38]} {[%emt 00:00:19]} 34. Qd3 {[%clk 00:01:55]} {[%emt 00:00:35]} Rxd2
{[%clk 00:00:38]} {[%emt 00:00:06]} 35. Qxd2 {[%clk 00:02:00]} Nd5 {[%clk
00:00:35]} {[%emt 00:00:09]} 36. Nb6 {[%clk 00:01:37]} {[%emt 00:00:27]} Ndf4
{[%clk 00:00:19]} {[%emt 00:00:21]} 37. Nd7 {[%clk 00:01:32]} {[%emt 00:00:09]}
Be7 {[%clk 00:00:08]} {[%emt 00:00:17]} 38. Nxe7+ {[%clk 00:01:34]} {[%emt
00:00:03]} Qxe7 {[%clk 00:00:08]} {[%emt 00:00:05]} 39. Ne5 {[%clk 00:00:57]}
{[%emt 00:00:43]} Qh4+ {[%clk 00:00:11]} {[%emt 00:00:02]} 40. Kh2 {[%clk
00:00:54]} {[%emt 00:02:04]} Nxh3 {[%clk 00:00:35]} {[%emt 00:00:40]} 41. Nxg6
{[%clk 00:00:41]} {[%emt 00:00:18]} fxg6 {[%clk 00:00:39]} 42. Be5 {[%clk
00:00:18]} {[%emt 00:00:29]} Ng5+ {[%clk 00:00:39]} {[%emt 00:00:05]} 43. Kg2
{[%clk 00:00:11]} {[%emt 00:00:11]} Qh3+ {[%clk 00:00:43]} 44. Kf2 {[%clk
00:00:08]} {[%emt 00:00:09]} Qxf3+ {[%clk 00:00:47]} 45. Ke1 {[%clk 00:00:08]}
{[%emt 00:00:05]} Qe4+ {[%clk 00:00:51]} 46. Qe2 {[%clk 00:00:10]} {[%emt
00:00:03]} Nf3+ {[%clk 00:00:55]} 47. Kf2 {[%emt 00:00:10]} 0-1